bitfinex/quotes_BTCUSD_20250519
["timestamp","ask_amount","ask_price","bid_price","bid_amount"]
[1747651316732,0.2329637,103020.0,103010.0,0.2643773]
[1747651316939,0.2329637,103020.0,103010.0,0.27408471]
[1747651317391,0.2135501,103020.0,103010.0,0.27408471]
[1747651317619,0.2135501,103020.0,103010.0,0.28379184]
[1747651317850,0.2136067,103030.0,103020.0,0.23867063]
[1747651318059,0.41247251,103030.0,103020.0,0.23867063]
[1747651318707,0.22331167,103030.0,103020.0,0.25808338]
[1747651318947,0.22331167,103030.0,103020.0,0.25236284]
[1747651319154,0.2427232,103030.0,103020.0,0.26206922]
[1747651319364,0.2437231,103030.0,103020.0,0.2717755]
[1747651319751,0.001,103030.0,103020.0,0.2717755]
[1747651319955,0.02041049,103030.0,103020.0,0.28148169]
[1747651320166,0.001,103030.0,103020.0,0.28148169]
[1747651320369,0.002,103030.0,103020.0,0.28148169]
[1747651320781,0.001,103030.0,103020.0,0.28148169]
[1747651320986,0.21363415,103040.0,103030.0,0.24755618]
[1747651321191,0.23291762,103040.0,103030.0,0.24755618]
[1747651321389,0.23291762,103040.0,103030.0,0.25154202]
[1747651321610,0.22321275,103040.0,103030.0,0.26124745]
[1747651322020,0.22321266,103040.0,103030.0,0.2709527]
[1747651322267,0.23339464,103040.0,103030.0,0.2709527]
[1747651322600,0.23339464,103040.0,103030.0,0.28065804]
[1747651322806,0.23439474,103040.0,103030.0,0.27095279]
[1747651323011,0.22468996,103040.0,103030.0,0.27095279]
[1747651323225,0.2440996,103040.0,103030.0,0.26124745]
[1747651323445,0.24410017,103040.0,103030.0,0.26124764]
[1747651323641,0.23539568,103040.0,103030.0,0.2515423]
[1747651324283,0.23539568,103040.0,103030.0,0.01998574]
[1747651324498,0.59249491,103040.0,103030.0,0.00661256]
[1747651324703,0.97085491,103040.0,103030.0,0.00661256]
[1747651324912,0.97085491,103040.0,103030.0,0.00398574]
[1747651325558,0.97085491,103040.0,103030.0,0.00895047]
[1747651325985,1.02085491,103040.0,103030.0,0.00895047]
[1747651326378,1.02081491,103040.0,103030.0,0.00895047]
[1747651330235,0.77221581,103040.0,103030.0,0.00895047]
[1747651330448,1.02081491,103040.0,103030.0,0.00895047]
[1747651333171,1.36081491,103040.0,103030.0,0.00895047]
[1747651334260,1.36081491,103040.0,103030.0,0.00398574]
[1747651335472,1.37535576,103040.0,103030.0,0.00398574]
[1747651335661,0.2135501,103020.0,103010.0,0.01642745]
[1747651335824,0.9700586,103020.0,103010.0,0.01158506]
[1747651336611,0.9700586,103020.0,103010.0,0.00397137]
[1747651337688,0.9700586,103020.0,103010.0,0.00697137]
[1747651338112,0.9700586,103020.0,103010.0,0.00397137]
[1747651338320,0.9700586,103020.0,103010.0,0.00497137]
[1747651339166,1.3100586,103020.0,103010.0,0.00497137]
[1747651339373,1.67050795,103020.0,103010.0,0.001]
[1747651340338,0.0498168,103000.0,102990.0,0.00893238]
[1747651340607,0.96786005,103000.0,102990.0,0.00893238]
[1747651341069,0.53030095,103000.0,102990.0,0.00893238]
[1747651341305,1.05926095,103000.0,102990.0,0.00893238]
[1747651341512,1.04426095,103000.0,102990.0,0.0115592]
[1747651341653,0.70426095,103000.0,102990.0,0.00267234]
[1747651342058,0.68886095,103000.0,102990.0,0.00267234]
[1747651342654,0.56050005,103000.0,102990.0,0.00267234]
[1747651342931,0.93850005,103000.0,102990.0,0.00267234]
[1747651343204,0.97010005,103000.0,102990.0,0.00267234]
[1747651344441,0.97984487,103000.0,102990.0,0.00267234]
[1747651347485,0.97984487,103000.0,102990.0,4.552e-05]
[1747651348015,0.97984487,103000.0,102990.0,0.00267234]
[1747651351509,0.96454487,103000.0,102990.0,0.00267234]
[1747651351727,0.94824487,103000.0,102990.0,0.00267234]
[1747651352131,0.69964577,103000.0,102990.0,0.01797234]
[1747651353404,0.69964577,103000.0,102990.0,0.00267234]
[1747651353751,0.68990095,103000.0,102990.0,0.00267234]
[1747651355194,0.68990095,103000.0,102990.0,0.01867234]
[1747651355804,0.68990095,103000.0,102990.0,0.00267234]
[1747651357284,0.68990095,103000.0,102990.0,0.01787234]
[1747651358148,0.68990095,103000.0,102990.0,0.00267234]
[1747651358534,0.93850005,103000.0,102990.0,0.00267234]
[1747651359938,0.93850005,103000.0,102990.0,0.01797234]
[1747651360352,0.68990095,103000.0,102990.0,0.01797234]
[1747651361677,0.68990095,103000.0,102990.0,0.00267234]
[1747651363096,0.68990095,103000.0,102990.0,0.00664411]
[1747651363588,0.68990095,103000.0,102990.0,0.02314411]
[1747651363972,0.31190095,103000.0,102990.0,0.03934411]
[1747651364162,0.1177262,103000.0,102990.0,0.2432473]
[1747651364372,0.50078095,103000.0,102990.0,0.2529566]
[1747651364576,0.49107269,103000.0,102990.0,0.2432473]
[1747651364921,0.49107269,103000.0,102990.0,0.25295669]
[1747651365069,0.48136415,103000.0,102990.0,0.2432473]
[1747651365475,0.48036415,103000.0,102990.0,0.26266599]
[1747651365675,0.48036415,103000.0,102990.0,0.26366599]
[1747651365875,0.48036415,103000.0,102990.0,0.27525105]
[1747651366341,0.48036415,103000.0,102990.0,0.27425105]
[1747651366489,0.48036415,103000.0,102990.0,0.26654185]
[1747651366823,0.48036415,103000.0,102990.0,0.26754185]
[1747651366997,0.48036415,103000.0,102990.0,0.26654185]
[1747651367207,0.48036415,103000.0,102990.0,0.26954185]
[1747651368716,0.48036415,103000.0,102990.0,0.27925115]
[1747651370803,0.49007269,103000.0,102990.0,0.28896035]
[1747651371422,0.49007269,103000.0,102990.0,0.26954185]
[1747651371737,0.49007269,103000.0,102990.0,0.05592917]
[1747651371962,0.75966325,103000.0,102990.0,0.02322917]
[1747651372642,0.75966325,103000.0,102990.0,0.02122917]
[1747651373084,0.75966325,103000.0,102990.0,0.02222917]
[1747651373298,0.75966325,103000.0,102990.0,0.01064411]
[1747651373507,0.75966325,103000.0,102990.0,0.00764411]
[1747651373923,0.75966325,103000.0,102990.0,0.00864411]
[1747651374584,0.98440574,103000.0,102990.0,0.00864411]
[1747651374799,0.98440574,103000.0,102980.0,0.00496473]
[1747651374800,0.59014395,102990.0,102980.0,0.00496473]
[1747651375094,7.26964955,102990.0,102980.0,0.00500991]
[1747651375686,7.26964955,102990.0,102980.0,4.518e-05]
[1747651376092,2.07189155,102990.0,102980.0,4.518e-05]
[1747651376273,2.16920095,102990.0,102980.0,4.518e-05]
[1747651376425,2.17320095,102990.0,102980.0,4.518e-05]
[1747651376814,2.17620095,102990.0,102980.0,4.518e-05]
[1747651377222,2.07589155,102990.0,102980.0,4.518e-05]
[1747651377433,2.26865155,102990.0,102980.0,4.518e-05]
[1747651378181,7.46640955,102990.0,102980.0,4.518e-05]
[1747651378369,6.77800955,102990.0,102980.0,4.518e-05]
[1747651383492,6.87535895,102990.0,102980.0,4.518e-05]
[1747651384315,6.86535895,102990.0,102980.0,4.518e-05]
[1747651384515,1.66760095,102990.0,102980.0,4.518e-05]
[1747651384946,1.67760095,102990.0,102980.0,4.518e-05]
[1747651385087,1.66760095,102990.0,102980.0,4.518e-05]
[1747651387352,1.19265155,102990.0,102980.0,4.518e-05]
[1747651387560,0.21367454,102960.0,102950.0,0.00262682]
[1747651387825,0.93726304,102960.0,102950.0,0.002672]
[1747651387998,0.93726304,102960.0,102950.0,4.518e-05]
[1747651387999,0.96710389,102960.0,102950.0,4.518e-05]
[1747651388173,1.23120299,102960.0,102950.0,4.518e-05]
[1747651388741,0.98260389,102960.0,102950.0,4.518e-05]
[1747651389341,0.98260389,102960.0,102950.0,0.00104518]
[1747651390629,0.98260389,102960.0,102950.0,4.518e-05]
[1747651391024,0.98460389,102960.0,102950.0,4.518e-05]
[1747651391425,1.68300389,102960.0,102950.0,4.518e-05]
[1747651393523,1.38906394,102960.0,102950.0,4.518e-05]
[1747651393746,1.63766304,102960.0,102950.0,0.018172]
[1747651394236,1.63746304,102960.0,102950.0,0.002672]
[1747651396846,1.63746304,102960.0,102950.0,0.018572]
[1747651396847,1.01138394,102960.0,102950.0,0.018572]
[1747651397068,1.00167125,102960.0,102950.0,0.22934106]
[1747651397284,0.31298319,102960.0,102950.0,0.23905432]
[1747651397503,0.33240773,102960.0,102950.0,0.24876749]
[1747651397715,0.22538591,102960.0,102950.0,0.26819335]
[1747651397998,0.22538591,102960.0,102950.0,0.26819354]
[1747651398194,0.002,102960.0,102950.0,0.27790642]
[1747651398428,0.22338619,102960.0,102950.0,0.26244001]
[1747651398636,0.22338601,102960.0,102950.0,0.26244001]
[1747651398837,0.22338601,102960.0,102950.0,0.27515289]
[1747651399101,0.22338601,102960.0,102950.0,0.27715289]
[1747651399296,0.00971175,102960.0,102950.0,0.28702333]
[1747651399497,0.21367388,102960.0,102950.0,0.27731054]
[1747651399701,0.23309813,102960.0,102950.0,0.27731054]
[1747651400680,0.22338591,102960.0,102950.0,0.28227527]
[1747651401046,0.23309813,102960.0,102950.0,0.28227527]
[1747651401630,0.23309813,102960.0,102950.0,0.27256267]
[1747651401805,0.23309813,102960.0,102950.0,0.28227574]
[1747651402017,0.23309813,102960.0,102950.0,0.29198872]
[1747651402230,0.21367388,102960.0,102950.0,0.64170151]
[1747651402437,0.21367072,102970.0,102960.0,0.24760155]
[1747651402643,0.2233819,102970.0,102960.0,0.23788951]
[1747651403754,0.2233819,102970.0,102960.0,0.24184924]
[1747651404516,0.2233819,102970.0,102960.0,0.25156146]
[1747651404725,0.21367043,102970.0,102960.0,0.25156165]
[1747651404930,0.39267555,102980.0,102970.0,0.24758079]
[1747651405150,0.42180628,102980.0,102970.0,0.22815814]
[1747651405370,0.42180628,102980.0,102970.0,0.04363838]
[1747651405371,0.41209651,102980.0,102970.0,0.04363838]
[1747651405572,0.41209651,102980.0,102970.0,0.03392682]
[1747651405943,0.41209651,102980.0,102970.0,0.03788655]
[1747651406170,0.41309651,102980.0,102970.0,0.03788655]
[1747651406406,0.40338646,102980.0,102970.0,0.03788655]
[1747651407079,0.21466646,102980.0,102970.0,0.03788655]
[1747651407286,0.21566646,102980.0,102970.0,0.03788655]
[1747651407497,0.21566646,102980.0,102970.0,0.04284905]
[1747651407920,0.56157496,102980.0,102970.0,0.01154905]
[1747651408096,0.75029496,102980.0,102970.0,0.01154905]
[1747651409079,0.56157496,102980.0,102970.0,0.01154905]
[1747651409279,0.93893496,102980.0,102970.0,0.01154905]
[1747651410087,0.93893496,102980.0,102970.0,0.00658655]
[1747651411619,0.93893496,102980.0,102970.0,0.00395973]
[1747651411805,0.97033496,102980.0,102970.0,0.00395973]
[1747651412242,0.95423496,102980.0,102970.0,0.00658655]
[1747651413102,0.95423496,102980.0,102970.0,0.00395973]
[1747651413548,0.19423132,102970.0,102960.0,0.01832682]
[1747651413713,0.29154072,102970.0,102960.0,0.01832682]
[1747651413927,0.54013982,102970.0,102960.0,0.01832682]
[1747651414133,0.19425019,102960.0,102950.0,0.38299423]
[1747651414342,0.38285019,102960.0,102950.0,0.04299423]
[1747651414562,0.38285019,102960.0,102950.0,0.04036741]
[1747651414783,0.38285019,102960.0,102950.0,0.04299423]
[1747651415007,0.39256241,102960.0,102950.0,0.04036741]
[1747651415439,0.39256241,102960.0,102950.0,0.04299423]
[1747651416119,0.39256241,102960.0,102950.0,0.04599423]
[1747651416508,0.38285019,102960.0,102950.0,0.04599423]
[1747651416695,0.38285019,102960.0,102950.0,0.04536741]
[1747651416889,0.38285019,102960.0,102950.0,0.04799423]
[1747651418676,0.38285019,102960.0,102950.0,0.04599423]
[1747651421585,0.19425019,102960.0,102950.0,0.04599423]
[1747651421795,0.38285019,102960.0,102950.0,0.24997664]
[1747651422223,0.39256232,102960.0,102950.0,0.26940316]
[1747651422501,0.22338638,102960.0,102950.0,0.26940316]
[1747651422754,0.68828356,102970.0,102960.0,0.03452682]
[1747651422998,0.68828356,102970.0,102960.0,0.04423932]
[1747651423246,0.68828356,102970.0,102960.0,0.23848951]
[1747651423454,0.68828356,102970.0,102960.0,0.03452682]
[1747651424002,0.67857228,102970.0,102960.0,0.03452682]
[1747651424774,0.67857228,102970.0,102960.0,0.03848655]
[1747651424972,0.67857228,102970.0,102960.0,0.02278655]
[1747651425154,0.67857228,102970.0,102960.0,0.00658655]
[1747651425761,0.67857228,102970.0,102960.0,0.00758655]
[1747651426347,0.67857228,102970.0,102960.0,0.01254905]
[1747651429093,0.71067228,102970.0,102960.0,0.01254905]
[1747651429539,0.69487228,102970.0,102960.0,0.01254905]
[1747651429736,0.67857228,102970.0,102960.0,0.01254905]
[1747651431408,0.69497228,102970.0,102960.0,0.01254905]
[1747651432011,0.71067228,102970.0,102960.0,0.01254905]
[1747651432772,0.69497228,102970.0,102960.0,0.01254905]
[1747651436754,0.67857228,102970.0,102960.0,0.01254905]
[1747651440139,0.67857228,102970.0,102960.0,0.02894905]
[1747651440347,0.69437228,102970.0,102960.0,0.01254905]
[1747651441229,0.67857228,102970.0,102960.0,0.01254905]
[1747651444322,0.95837138,102970.0,102960.0,0.00992223]
[1747651444674,0.95837138,102970.0,102960.0,0.01254905]
[1747651445281,0.95837138,102970.0,102960.0,0.00758655]
[1747651445786,0.95837138,102970.0,102960.0,0.00495973]
[1747651446611,1.39568078,102970.0,102960.0,0.00495973]
[1747651446825,1.29837138,102970.0,102960.0,0.00495973]
[1747651447043,1.29837138,102970.0,102960.0,0.001]
[1747651447894,1.29937138,102970.0,102960.0,0.001]
[1747651448951,0.23626251,102960.0,102950.0,0.00660412]
[1747651449078,0.58217101,102960.0,102950.0,0.00660412]
[1747651450434,0.58217101,102960.0,102950.0,0.00760412]
[1747651451256,0.58217101,102960.0,102950.0,0.0049773]
[1747651451484,0.58217101,102960.0,102950.0,0.00760412]
[1747651451675,0.77073101,102960.0,102950.0,0.00760412]
[1747651451887,0.94311101,102960.0,102950.0,0.00760412]
[1747651453971,0.67831191,102960.0,102950.0,0.03880412]
[1747651456075,0.48983191,102960.0,102950.0,0.03880412]
[1747651456283,0.67831191,102960.0,102950.0,0.03880412]
[1747651456497,0.48975191,102960.0,102950.0,0.03880412]
[1747651458869,0.49946413,102960.0,102950.0,0.03880412]
[1747651459776,0.49946413,102960.0,102950.0,0.04376662]
[1747651461473,0.31098413,102960.0,102950.0,0.23803568]
[1747651461929,0.30127191,102960.0,102950.0,0.05348007]
[1747651462072,0.30127191,102960.0,102950.0,0.04376662]
[1747651462298,0.30127191,102960.0,102950.0,0.05348007]
[1747651463490,0.20396251,102960.0,102950.0,0.04376662]
[1747651463736,0.20396251,102960.0,102950.0,0.25746239]
[1747651463945,0.20396251,102960.0,102950.0,0.05348007]
[1747651464157,0.20396251,102960.0,102950.0,0.04376662]
[1747651464826,0.56186899,102960.0,102950.0,0.01256662]
[1747651465039,0.95855101,102960.0,102950.0,0.01256662]
[1747651465255,0.95855101,102960.0,102950.0,0.01918695]
[1747651465906,1.03686355,102960.0,102950.0,0.01918695]
[1747651466171,1.03686355,102960.0,102950.0,0.01818695]
[1747651466397,1.03786355,102960.0,102950.0,0.01818695]
[1747651467004,0.87540773,102960.0,102950.0,0.01818695]
[1747651467820,0.96100704,102960.0,102950.0,0.00660412]
[1747651470271,0.69605191,102960.0,102950.0,0.00660412]
[1747651470472,0.92920704,102960.0,102950.0,0.00660412]
[1747651471039,0.68011191,102960.0,102950.0,0.02280412]
[1747651471280,0.30327191,102960.0,102950.0,0.02280412]
[1747651471443,0.49167191,102960.0,102950.0,0.02280412]
[1747651476273,0.30327191,102960.0,102950.0,0.02280412]
[1747651476463,0.68011191,102960.0,102950.0,0.02280412]
[1747651480760,0.68011191,102960.0,102950.0,0.03790412]
[1747651480942,0.68011191,102960.0,102950.0,0.04286662]
[1747651481430,0.4938144,102960.0,102950.0,0.01156662]
[1747651481616,1.28785526,102960.0,102950.0,0.0089398]
[1747651482365,1.03880013,102960.0,102950.0,0.0089398]
[1747651483098,1.28785526,102960.0,102950.0,0.0039773]
[1747651483259,1.03880013,102960.0,102950.0,0.0039773]
[1747651484674,0.96136704,102960.0,102950.0,0.0039773]
[1747651485525,1.21042217,102960.0,102950.0,0.0039773]
[1747651485832,1.22015338,102960.0,102950.0,0.0039773]
[1747651487573,1.91855338,102960.0,102950.0,0.0039773]
[1747651488408,0.20398232,102950.0,102940.0,0.00262682]
[1747651488687,0.55034685,102950.0,102940.0,0.00270619]
[1747651488938,0.56544685,102950.0,102940.0,0.00270619]
[1747651489615,0.56544685,102950.0,102940.0,0.00668181]
[1747651489913,0.47987431,102950.0,102940.0,0.00668181]
[1747651490523,0.31639172,102950.0,102940.0,0.00668181]
[1747651490735,0.47987431,102950.0,102940.0,0.00668181]
[1747651490877,0.85659431,102950.0,102940.0,0.00668181]
[1747651491077,0.85659431,102950.0,102940.0,0.00768181]
[1747651496018,0.84149431,102950.0,102940.0,0.00768181]
[1747651497374,0.84145431,102950.0,102940.0,0.00768181]
[1747651498047,0.85745431,102950.0,102940.0,0.00768181]
[1747651499675,0.66913431,102950.0,102940.0,0.00768181]
[1747651499874,0.85745431,102950.0,102940.0,0.00768181]
[1747651500449,0.65313431,102950.0,102940.0,0.00768181]
[1747651500645,0.84145431,102950.0,102940.0,0.03938181]
[1747651500877,0.84145431,102950.0,102940.0,0.02308181]
[1747651501256,0.84145431,102950.0,102940.0,0.03938181]
[1747651501454,0.48965172,102950.0,102940.0,0.03938181]
[1747651501667,0.68768489,102950.0,102940.0,0.03938181]
[1747651501867,0.59037549,102950.0,102940.0,0.03938181]
[1747651502246,0.59037549,102950.0,102940.0,0.23366974]
[1747651502441,0.60008884,102950.0,102940.0,0.24338404]
[1747651502686,0.21369511,102950.0,102940.0,0.24338404]
[1747651502886,0.21369454,102950.0,102940.0,0.24338404]
[1747651503082,0.22340761,102950.0,102940.0,0.26281216]
[1747651503290,0.23312087,102950.0,102940.0,0.26943268]
[1747651504065,0.39224194,102960.0,102950.0,0.23680914]
[1747651504269,0.42137823,102960.0,102950.0,0.23680914]
[1747651504438,0.42137823,102960.0,102950.0,0.03282682]
[1747651504657,0.42137889,102960.0,102950.0,0.03282682]
[1747651505411,0.42237889,102960.0,102950.0,0.03282682]
[1747651505621,0.42337889,102960.0,102950.0,0.04342277]
[1747651505790,0.42337889,102960.0,102950.0,0.24740528]
[1747651506404,0.42337889,102960.0,102950.0,0.05313622]
[1747651506584,0.42337889,102960.0,102950.0,0.25711863]
[1747651506762,0.42337889,102960.0,102950.0,0.05313622]
[1747651506967,0.41366705,102960.0,102950.0,0.05313622]
[1747651507227,0.41366705,102960.0,102950.0,0.25711845]
[1747651507430,0.41366705,102960.0,102950.0,0.24740528]
[1747651507574,0.41366705,102960.0,102950.0,0.05313622]
[1747651508082,0.41366705,102960.0,102950.0,0.04342277]
[1747651509338,0.41366705,102960.0,102950.0,0.05313622]
[1747651509512,0.41366705,102960.0,102950.0,0.04342277]
[1747651510367,0.20596203,102960.0,102950.0,0.28151132]
[1747651510705,0.002,102960.0,102950.0,0.62151132]
[1747651510904,0.01171175,102960.0,102950.0,0.62151132]
[1747651511112,0.002,102960.0,102950.0,0.62151132]
[1747651511337,0.01071166,102960.0,102950.0,0.62151132]
[1747651511776,0.00971166,102960.0,102950.0,0.62351132]
[1747651511953,0.00971166,102960.0,102950.0,0.62651132]
[1747651512464,0.59996497,102970.0,102960.0,0.23526269]
[1747651512669,0.59996497,102970.0,102960.0,0.2449751]
[1747651513192,0.59996497,102970.0,102960.0,0.25391755]
[1747651513696,0.59996497,102970.0,102960.0,0.25491755]
[1747651513935,0.01942171,102970.0,102960.0,0.2672565]
[1747651514143,0.21365303,102970.0,102960.0,0.28668028]
[1747651514359,0.00971071,102970.0,102960.0,0.27696844]
[1747651514561,0.41157641,102980.0,102970.0,0.2378697]
[1747651514769,0.41157641,102980.0,102970.0,0.03392682]
[1747651515382,0.42128703,102980.0,102970.0,0.03392682]
[1747651515789,0.42228703,102980.0,102970.0,0.04286927]
[1747651515998,0.23508703,102980.0,102970.0,0.04286927]
[1747651516174,0.42328703,102980.0,102970.0,0.04286927]
[1747651516916,0.42328703,102980.0,102970.0,0.05258083]
[1747651517109,0.42328703,102980.0,102970.0,0.04286927]
[1747651519894,0.41357688,102980.0,102970.0,0.04286927]
[1747651520833,0.41357688,102980.0,102970.0,0.04717677]
[1747651520975,0.41357688,102980.0,102970.0,0.04220994]
[1747651521956,0.41353688,102980.0,102970.0,0.04220994]
[1747651522111,0.41353688,102980.0,102970.0,0.0519215]
[1747651522317,0.41353688,102980.0,102970.0,0.04220994]
[1747651522845,0.22537688,102980.0,102970.0,0.04220994]
[1747651523055,0.41353688,102980.0,102970.0,0.04220994]
[1747651523200,0.41353688,102980.0,102970.0,0.04717677]
[1747651523926,0.39411546,102980.0,102970.0,0.27054183]
[1747651524127,0.22537585,102980.0,102970.0,0.26083074]
[1747651524313,0.22537575,102980.0,102970.0,0.26083074]
[1747651524514,0.22537575,102980.0,102970.0,0.27054183]
[1747651524929,0.001,102980.0,102970.0,0.62025273]
[1747651525129,0.22332169,102990.0,102980.0,0.2065499]
[1747651525346,0.41148169,102990.0,102980.0,0.03352682]
[1747651525976,0.41148169,102990.0,102980.0,0.04246927]
[1747651526381,0.41148169,102990.0,102980.0,0.04254864]
[1747651526619,0.41148169,102990.0,102980.0,0.04354864]
[1747651527779,0.41148169,102990.0,102980.0,0.24747162]
[1747651527980,0.41148169,102990.0,102980.0,0.25730282]
[1747651528886,0.42119137,102990.0,102980.0,0.25730282]
[1747651529085,0.42119137,102990.0,102980.0,0.05337984]
[1747651529300,0.41148226,102990.0,102980.0,0.05337984]
[1747651530318,0.41148226,102990.0,102980.0,0.06309046]
[1747651530518,0.3960435,102990.0,102980.0,0.06309046]
[1747651531100,0.3960435,102990.0,102980.0,0.05325926]
[1747651531328,0.3960435,102990.0,102980.0,0.04354864]
[1747651531531,0.38633411,102990.0,102980.0,0.04354864]
[1747651533345,0.37662453,102990.0,102980.0,0.01002182]
[1747651533524,0.85663652,102990.0,102980.0,0.01264864]
[1747651533712,0.48035652,102990.0,102980.0,0.01002182]
[1747651533907,0.85759652,102990.0,102980.0,0.01264864]
[1747651535723,0.85759652,102990.0,102980.0,0.00768181]
[1747651536319,0.69411393,102990.0,102980.0,0.00768181]
[1747651536540,0.85759652,102990.0,102980.0,0.00768181]
[1747651538883,0.31687393,102990.0,102980.0,0.00768181]
[1747651539102,0.28577393,102990.0,102980.0,0.02338181]
[1747651539300,0.48077393,102990.0,102980.0,0.02338181]
[1747651539507,0.67625393,102990.0,102980.0,0.00768181]
[1747651539728,0.57894453,102990.0,102980.0,0.02328181]
[1747651539938,0.38346453,102990.0,102980.0,0.02328181]
[1747651540144,0.57910453,102990.0,102980.0,0.24330479]
[1747651540345,0.57910453,102990.0,102980.0,0.04909243]
[1747651540774,0.57910453,102990.0,102980.0,0.03938181]
[1747651541477,0.57910453,102990.0,102980.0,0.06067949]
[1747651541714,0.57910453,102990.0,102980.0,0.05096897]
[1747651541896,0.57910453,102990.0,102980.0,0.06067959]
[1747651542574,0.57910453,102990.0,102980.0,0.05096897]
[1747651543310,0.57910453,102990.0,102980.0,0.06067959]
[1747651545214,0.57910453,102990.0,102980.0,0.05096897]
[1747651545413,0.69860425,102990.0,102980.0,0.01926897]
[1747651546557,0.69860425,102990.0,102980.0,0.01264864]
[1747651551000,0.94744853,102990.0,102980.0,0.01264864]
[1747651551246,0.69860425,102990.0,102980.0,0.01264864]
[1747651551876,0.68270425,102990.0,102980.0,0.01264864]
[1747651552043,0.68334425,102990.0,102980.0,0.01264864]
[1747651552901,0.66734425,102990.0,102980.0,0.01264864]
[1747651553502,0.47106425,102990.0,102980.0,0.01264864]
[1747651553736,0.66738425,102990.0,102980.0,0.01264864]
[1747651559464,0.68338425,102990.0,102980.0,0.01264864]
[1747651559631,0.69968425,102990.0,102980.0,0.01264864]
[1747651560218,0.94852853,102990.0,102980.0,0.01264864]
[1747651561052,0.57174938,102990.0,102980.0,0.01002182]
[1747651561216,1.39997878,102990.0,102980.0,0.01002182]
[1747651561661,1.30266938,102990.0,102980.0,0.01002182]
[1747651561869,1.21720091,102990.0,102980.0,0.01002182]
[1747651562495,1.21820091,102990.0,102980.0,0.00902182]
[1747651562955,1.21920091,102990.0,102980.0,0.00902182]
[1747651563539,1.21920091,102990.0,102980.0,7.937e-05]
[1747651563747,1.30478718,102990.0,102980.0,7.937e-05]
[1747651564940,0.91386718,102990.0,102980.0,7.937e-05]
[1747651565134,1.30526718,102990.0,102980.0,7.937e-05]
[1747651565333,2.00366718,102990.0,102980.0,7.937e-05]
[1747651566230,1.61226718,102990.0,102980.0,7.937e-05]
[1747651566440,1.98912633,102990.0,102980.0,7.937e-05]
[1747651568405,1.54376425,102990.0,102980.0,7.937e-05]
[1747651568614,1.98896633,102990.0,102980.0,7.937e-05]
[1747651570618,1.98960633,102990.0,102980.0,7.937e-05]
[1747651570820,1.98960633,102990.0,102980.0,0.00270619]
[1747651572397,1.79368633,102990.0,102980.0,0.00270619]
[1747651572614,1.97326633,102990.0,102980.0,0.00270619]
[1747651573345,1.98946633,102990.0,102980.0,0.00270619]
[1747651579094,2.00400718,102990.0,102980.0,7.937e-05]
[1747651579314,2.25296926,102990.0,102980.0,7.937e-05]
[1747651579967,2.00400718,102990.0,102980.0,7.937e-05]
[1747651580176,2.25296926,102990.0,102980.0,7.937e-05]
[1747651580407,2.00476718,102990.0,102980.0,7.937e-05]
[1747651580628,2.25372926,102990.0,102980.0,7.937e-05]
[1747651580818,1.55532926,102990.0,102980.0,7.937e-05]
[1747651581289,6.85039666,102990.0,102980.0,7.937e-05]
[1747651582207,6.84839666,102990.0,102980.0,7.937e-05]
[1747651582425,6.85139666,102990.0,102980.0,7.937e-05]
[1747651584001,6.85339666,102990.0,102980.0,7.937e-05]
[1747651584415,6.85339666,102990.0,102970.0,0.00404256]
[1747651584416,0.73404705,102980.0,102970.0,0.00404256]
[1747651584628,0.73404705,102980.0,102970.0,0.00412194]
[1747651584629,5.87746177,102980.0,102970.0,0.00412194]
[1747651584937,0.43074169,102980.0,102970.0,0.00412194]
[1747651585154,0.67970377,102980.0,102970.0,0.00412194]
[1747651585365,1.07338377,102980.0,102970.0,0.00412194]
[1747651585572,1.07738377,102980.0,102970.0,0.00412194]
[1747651588291,0.68370377,102980.0,102970.0,0.00412194]
[1747651588497,1.07798377,102980.0,102970.0,0.00412194]
[1747651597117,1.49746377,102980.0,102970.0,0.00412194]
[1747651597697,1.73885109,102980.0,102970.0,0.00412194]
[1747651600519,0.19425019,102960.0,102940.0,0.03492682]
[1747651600730,1.02203132,102950.0,102940.0,0.01837202]
[1747651600979,0.85858152,102950.0,102940.0,0.01837202]
[1747651601607,0.85858152,102950.0,102940.0,0.02437202]
[1747651601920,0.85858152,102950.0,102940.0,0.02037202]
[1747651602461,0.85858152,102950.0,102940.0,0.03777202]
[1747651603055,0.86850174,102950.0,102940.0,0.03777202]
[1747651603641,0.70505194,102950.0,102940.0,0.03777202]
[1747651603846,0.95418276,102950.0,102940.0,0.03577202]
[1747651604256,0.95418276,102950.0,102940.0,0.03877202]
[1747651604637,0.69513172,102950.0,102940.0,0.03877202]
[1747651604994,0.30129172,102950.0,102940.0,0.03877202]
[1747651605192,0.69553172,102950.0,102940.0,0.03877202]
[1747651605421,0.69549172,102950.0,102940.0,0.03877202]
[1747651605615,0.94462254,102950.0,102940.0,0.03877202]
[1747651605811,0.94462254,102950.0,102940.0,0.04273729]
[1747651607253,0.95418709,102950.0,102940.0,0.04273729]
[1747651612887,2.03802794,102950.0,102940.0,0.00901047]
[1747651613085,2.28715876,102950.0,102940.0,0.00901047]
[1747651613505,2.03802794,102950.0,102940.0,0.00901047]
[1747651613724,2.03802794,102950.0,102940.0,0.00601047]
[1747651613900,2.38446816,102950.0,102940.0,0.0020452]
[1747651614098,2.38746816,102950.0,102940.0,4.52e-05]
[1747651614304,2.39046816,102950.0,102940.0,4.52e-05]
[1747651620703,1.69206816,102950.0,102940.0,4.52e-05]
[1747651621340,0.4628884,102920.0,102910.0,0.0362]
[1747651621566,0.9538378,102920.0,102910.0,0.03625129]
[1747651621790,0.9538378,102920.0,102910.0,0.05275129]
[1747651623309,0.9538378,102920.0,102910.0,0.05575129]
[1747651623624,0.9538378,102920.0,102910.0,0.05875129]
[1747651625283,0.9538378,102920.0,102910.0,0.04225129]
[1747651625284,1.6522378,102920.0,102910.0,0.04225129]
[1747651625506,1.6522378,102920.0,102910.0,0.02605129]
[1747651625732,1.68187865,102920.0,102910.0,0.02605129]
[1747651625949,2.03847865,102920.0,102910.0,0.02605129]
[1747651626615,2.28760947,102920.0,102910.0,0.02305129]
[1747651626833,2.13578805,102920.0,102910.0,0.02305129]
[1747651627046,2.13578805,102920.0,102910.0,0.02105129]
[1747651627457,2.13578805,102920.0,102910.0,0.02205129]
[1747651627794,2.16614954,102920.0,102910.0,0.02205129]
[1747651628204,2.19373896,102920.0,102910.0,0.02205129]
[1747651628418,2.13578805,102920.0,102910.0,0.02205129]
[1747651628617,2.19373896,102920.0,102910.0,0.02205129]
[1747651629637,2.13578805,102920.0,102910.0,0.02205129]
[1747651630735,6.89165005,102920.0,102910.0,0.02205129]
[1747651630947,6.94025005,102920.0,102910.0,0.02205129]
[1747651631266,6.98989047,102920.0,102910.0,0.02205129]
[1747651631468,7.02025196,102920.0,102910.0,0.02205129]
[1747651631997,7.02025196,102920.0,102910.0,0.02105129]
[1747651632358,7.02325196,102920.0,102910.0,0.02105129]
[1747651632569,7.02325196,102920.0,102910.0,0.02005129]
[1747651633009,7.02625196,102920.0,102910.0,0.02005129]
[1747651635839,6.77712114,102920.0,102910.0,0.02005129]
[1747651636045,6.77716114,102920.0,102910.0,0.02005129]
[1747651636473,6.71921023,102920.0,102910.0,0.02005129]
[1747651636878,7.12849196,102920.0,102910.0,0.02005129]
[1747651637253,7.13849196,102920.0,102910.0,0.02005129]
[1747651638136,6.68530796,102920.0,102910.0,0.02005129]